Departmental Area,Entity,Payment Date,Expense Type,Expense Area,Supplier Name,Payment Reference,Invoice Distribution Amount,Description,Suplier Type,Expenditure Type
UK Statistics Authority,Office for National Statistics,01/05/2020,Exp - Short-Term Contract & Agency Staff - Full Cost,Business Change Support,Concept Information Technology Ltd T/A Concept Resourcing,181620,"4,763.20",Information Management Services,Large,Programme Expenditure
UK Statistics Authority,Office for National Statistics,01/05/2020,Exp - Short-Term Contract & Agency Staff - Full Cost,Business Change Support,Concept Information Technology Ltd T/A Concept Resourcing,181620,"9,445.56",Information Management Services,Large,Programme Expenditure
UK Statistics Authority,Office for National Statistics,01/05/2020,Exp - Short-Term Contract & Agency Staff - Full Cost,Business Change Support,Concept Information Technology Ltd T/A Concept Resourcing,181620,"4,915.81",Information Management Services,Large,Programme Expenditure
UK Statistics Authority,Office for National Statistics,01/05/2020,Exp - Short-Term Contract & Agency Staff - Full Cost,Business Change Support,Concept Information Technology Ltd T/A Concept Resourcing,181620,"13,651.99",Information Management Services,Large,Programme Expenditure
UK Statistics Authority,Office for National Statistics,01/05/2020,Exp - Short-Term Contract & Agency Staff - Full Cost,Business Change Support,Concept Information Technology Ltd T/A Concept Resourcing,181620,"14,310.38",Information Management Services,Large,Programme Expenditure
UK Statistics Authority,Office for National Statistics,01/05/2020,Exp - Purchase Of Goods/Services - Contractors,Business Change Support,Concept Information Technology Ltd T/A Concept Resourcing,181620,"5,414.23",Information Management Services,Large,Programme Expenditure
UK Statistics Authority,Office for National Statistics,01/05/2020,Exp - Purchase Of Goods/Services - Contractors,Business Change Support,Concept Information Technology Ltd T/A Concept Resourcing,181620,391.08,Information Management Services,Large,Programme Expenditure
UK Statistics Authority,Office for National Statistics,01/05/2020,Exp - Purchase Of Goods/Services - Contractors,Business Change Support,Concept Information Technology Ltd T/A Concept Resourcing,181620,"5,122.48",Information Management Services,Large,Programme Expenditure
UK Statistics Authority,Office for National Statistics,01/05/2020,Exp - Short-Term Contract & Agency Staff - Full Cost,International Trade And Transactions,Concept Information Technology Ltd T/A Concept Resourcing,181620,"1,997.11",Information Management Services,Large,Programme Expenditure
UK Statistics Authority,Office for National Statistics,01/05/2020,Exp - Short-Term Contract & Agency Staff - Full Cost,International Trade And Transactions,Concept Information Technology Ltd T/A Concept Resourcing,181620,"5,019.42",Information Management Services,Large,Programme Expenditure
UK Statistics Authority,Office for National Statistics,01/05/2020,Exp - Short-Term Contract & Agency Staff - Full Cost,International Trade And Transactions,Concept Information Technology Ltd T/A Concept Resourcing,181620,"4,817.39",Information Management Services,Large,Programme Expenditure
UK Statistics Authority,Office for National Statistics,01/05/2020,Exp - Short-Term Contract & Agency Staff - Full Cost,International Trade And Transactions,Concept Information Technology Ltd T/A Concept Resourcing,181620,"3,004.55",Information Management Services,Large,Programme Expenditure
UK Statistics Authority,Office for National Statistics,01/05/2020,Exp - Purchase Of Goods/Services - Contractors,International Trade And Transactions,Concept Information Technology Ltd T/A Concept Resourcing,181620,"3,998.62",Information Management Services,Large,Programme Expenditure
UK Statistics Authority,Office for National Statistics,01/05/2020,Exp - Short-Term Contract & Agency Staff - Full Cost,Productivity Research And Professional Development,Concept Information Technology Ltd T/A Concept Resourcing,181620,673.5,Information Management Services,Large,Programme Expenditure
UK Statistics Authority,Office for National Statistics,01/05/2020,Exp - Short-Term Contract & Agency Staff - Full Cost,Data Architecture,Concept Information Technology Ltd T/A Concept Resourcing,181620,"2,947.54",Information Management Services,Large,Programme Expenditure
UK Statistics Authority,Office for National Statistics,01/05/2020,Exp - Purchase Of Goods/Services - Contractors,Tech Delivery Data As A Platform,Concept Information Technology Ltd T/A Concept Resourcing,181620,"6,024.67",Information Management Services,Large,Programme Expenditure
UK Statistics Authority,Office for National Statistics,01/05/2020,Exp - Purchase Of Goods/Services - Contractors,Tech Delivery Data As A Platform,Concept Information Technology Ltd T/A Concept Resourcing,181620,"1,338.82",Information Management Services,Large,Programme Expenditure
UK Statistics Authority,Office for National Statistics,01/05/2020,Exp - Short-Term Contract & Agency Staff - Full Cost,Interviewer Management TU,Concept Information Technology Ltd T/A Concept Resourcing,181620,"2,742.61",Information Management Services,Large,Programme Expenditure
UK Statistics Authority,Office for National Statistics,01/05/2020,Exp - Purchase Of Goods/Services - Contractors,Testing,Certes Computing Ltd,181627,"18,446.40",Information Management Services,SME,Programme Expenditure
UK Statistics Authority,Office for National Statistics,01/05/2020,Exp - Purchase Of Goods/Services - Contractors,Programme Delivery,Certes Computing Ltd,181627,"11,529.00",Information Management Services,SME,Programme Expenditure
UK Statistics Authority,Office for National Statistics,01/05/2020,Exp - Purchase Of Goods/Services - Contractors,Strategy And Architecture,Certes Computing Ltd,181627,"13,834.80",Information Management Services,SME,Programme Expenditure
UK Statistics Authority,Office for National Statistics,01/05/2020,Exp - Purchase Of Goods/Services - Contractors,Tech Delivery Legacy Sp,Certes Computing Ltd,181627,"3,138.46",Information Management Services,SME,Programme Expenditure
UK Statistics Authority,Office for National Statistics,01/05/2020,Exp - Purchase Of Goods/Services - Contractors,Tech Delivery Legacy Sp,Certes Computing Ltd,181627,"14,347.20",Information Management Services,SME,Programme Expenditure
UK Statistics Authority,Office for National Statistics,01/05/2020,Exp - Purchase Of Goods/Services - Contractors,Tech Delivery Legacy Sp,Certes Computing Ltd,181627,"10,760.44",Information Management Services,SME,Programme Expenditure
UK Statistics Authority,Office for National Statistics,01/05/2020,Exp - Purchase Of Goods/Services - Contractors,Digital Delivery,Certes Computing Ltd,181627,"6,480.00",Information Management Services,SME,Programme Expenditure
UK Statistics Authority,Office for National Statistics,01/05/2020,Exp - Purchase Of Goods/Services - Contractors,Digital Delivery,Certes Computing Ltd,181627,"11,272.90",Information Management Services,SME,Programme Expenditure
UK Statistics Authority,Office for National Statistics,01/05/2020,Exp - Short-Term Contract & Agency Staff - Full Cost,Stakeholder Engagement And Comms,La International,181628,"4,308.21",Information Management Services,SME,Programme Expenditure
UK Statistics Authority,Office for National Statistics,01/05/2020,Exp - Purchase Of Goods/Services - Contractors,Testing,La International,181628,"7,048.44",Information Management Services,SME,Programme Expenditure
UK Statistics Authority,Office for National Statistics,01/05/2020,Exp - Purchase Of Goods/Services - Contractors,Testing,La International,181628,"2,354.82",Information Management Services,SME,Programme Expenditure
UK Statistics Authority,Office for National Statistics,01/05/2020,Exp - Purchase Of Goods/Services - Contractors,Programme Delivery,La International,181628,"6,060.42",Information Management Services,SME,Programme Expenditure
UK Statistics Authority,Office for National Statistics,01/05/2020,Exp - Purchase Of Goods/Services - Contractors,International Trade And Transactions,La International,181628,"1,025.23",Information Management Services,SME,Programme Expenditure
UK Statistics Authority,Office for National Statistics,01/05/2020,Exp - Purchase Of Goods/Services - Contractors,Business Architecture Transformation And Statistical Strategy,La International,181628,"3,332.01",Information Management Services,SME,Programme Expenditure
UK Statistics Authority,Office for National Statistics,01/05/2020,Exp - Purchase Of Goods/Services - Contractors,Tech Delivery SRS,La International,181628,"3,588.30",Information Management Services,SME,Programme Expenditure
UK Statistics Authority,Office for National Statistics,01/05/2020,Exp - Purchase Of Goods/Services - Contractors,Tech Delivery Legacy Sp,La International,181628,"3,588.30",Information Management Services,SME,Programme Expenditure
UK Statistics Authority,Office for National Statistics,01/05/2020,Exp - Purchase Of Goods/Services - Contractors,Tech Delivery Data As A Platform,La International,181628,"3,203.88",Information Management Services,SME,Programme Expenditure
UK Statistics Authority,Office for National Statistics,01/05/2020,Exp - Purchase Of Goods/Services - Contractors,IT Applications,La International,181628,"11,388.17",Information Management Services,SME,Programme Expenditure
UK Statistics Authority,Office for National Statistics,01/05/2020,Exp - Purchase Of Goods/Services - Contractors,Digital Delivery,La International,181628,"9,329.58",Information Management Services,SME,Programme Expenditure
UK Statistics Authority,Office for National Statistics,01/05/2020,Exp - Purchase Of Goods/Services - Contractors,Digital Delivery,La International,181628,"3,588.30",Information Management Services,SME,Programme Expenditure
UK Statistics Authority,Office for National Statistics,01/05/2020,"ICT Outsourcing, Maintenance And Support",IT Operations,CTS (Cloud Technology Solutions Ltd),181639,"44,093.72",DST Infrastructure Preparation,Large,Programme Expenditure
UK Statistics Authority,Office for National Statistics,01/05/2020,End User Software And Hardware,IT Operations,CTS (Cloud Technology Solutions Ltd),181639,"111,300.48",DST Census Infrastructure Preparation,Large,Programme Expenditure
UK Statistics Authority,Office for National Statistics,01/05/2020,Exp - Purchase Of Goods/Services - Contractors,Programme Delivery,Parity Resources Limited,181649,"38,416.57",Information Management Services,Large,Programme Expenditure
UK Statistics Authority,Office for National Statistics,01/05/2020,Exp - Short-Term Contract & Agency Staff - Full Cost,Recruitment ,Parity Resources Limited,181649,"1,001.22",Information Management Services,Large,Programme Expenditure
UK Statistics Authority,Office for National Statistics,01/05/2020,Exp - Short-Term Contract & Agency Staff - Full Cost,ONS And GSS Careers,Parity Resources Limited,181649,628.7,Information Management Services,Large,Programme Expenditure
UK Statistics Authority,Office for National Statistics,01/05/2020,"ICT Outsourcing, Maintenance And Support",Senior Management Team Design,Totalmobile Ltd,181650,"571,425.00",Field Work Management Tool,SME,Programme Expenditure
UK Statistics Authority,Office for National Statistics,04/05/2020,EXP - PURCHASE OF GOODS/SERVICES -  NON IT CONTRACTUAL PAYMENTS,Data Collection Service,Leidos Innovations UK Limited,181736,"3,707,294.56",Questionnaire Management,Large,Programme Expenditure
UK Statistics Authority,Office for National Statistics,07/05/2020,Exp - Purchase Of Goods/Services - Contractors,DST Reapportioning,E Synergy Solutions,181749,"5,021.26",Information Management Services,SME,Programme Expenditure
UK Statistics Authority,Office for National Statistics,07/05/2020,Exp - Purchase Of Goods/Services - Contractor Travel,DST Reapportioning,E Synergy Solutions,181749,367.87,Information Management Services,SME,Programme Expenditure
UK Statistics Authority,Office for National Statistics,07/05/2020,Exp - Purchase Of Goods/Services - IT Contractual Services,Tech Delivery Next Gen IT And Infrastructure,E Synergy Solutions,181749,"45,240.00",Information Management Services,SME,Programme Expenditure
UK Statistics Authority,Office for National Statistics,07/05/2020,FM Contract Payments,Mitie Payments,Vinci Construction UK Limited,181752,"324,759.28",Facilities Mangement Services,Large,Programme Expenditure
UK Statistics Authority,Office for National Statistics,07/05/2020,Exp - Purchase Of Goods/Services - Contractors,Testing,Concept Information Technology Ltd T/A Concept Resourcing,181753,"9,529.49",Information Management Services,Large,Programme Expenditure
UK Statistics Authority,Office for National Statistics,07/05/2020,Exp - Short-Term Contract & Agency Staff - Full Cost,Business Change Support,Concept Information Technology Ltd T/A Concept Resourcing,181753,"6,017.40",Information Management Services,Large,Programme Expenditure
UK Statistics Authority,Office for National Statistics,07/05/2020,Exp - Short-Term Contract & Agency Staff - Full Cost,Business Change Support,Concept Information Technology Ltd T/A Concept Resourcing,181753,"3,625.68",Information Management Services,Large,Programme Expenditure
UK Statistics Authority,Office for National Statistics,07/05/2020,Exp - Short-Term Contract & Agency Staff - Full Cost,Business Change Support,Concept Information Technology Ltd T/A Concept Resourcing,181753,505.44,Information Management Services,Large,Programme Expenditure
UK Statistics Authority,Office for National Statistics,07/05/2020,Exp - Short-Term Contract & Agency Staff - Full Cost,Business Change Support,Concept Information Technology Ltd T/A Concept Resourcing,181753,"2,382.98",Information Management Services,Large,Programme Expenditure
UK Statistics Authority,Office for National Statistics,07/05/2020,Exp - Purchase Of Goods/Services - Contractors,Business Change Support,Concept Information Technology Ltd T/A Concept Resourcing,181753,"5,441.46",Information Management Services,Large,Programme Expenditure
UK Statistics Authority,Office for National Statistics,07/05/2020,Exp - Purchase Of Goods/Services - Contractors,Business Change Support,Concept Information Technology Ltd T/A Concept Resourcing,181753,"3,212.92",Information Management Services,Large,Programme Expenditure
UK Statistics Authority,Office for National Statistics,07/05/2020,Exp - Short-Term Contract & Agency Staff - Full Cost,International Trade And Transactions,Concept Information Technology Ltd T/A Concept Resourcing,181753,"3,626.22",Information Management Services,Large,Programme Expenditure
UK Statistics Authority,Office for National Statistics,07/05/2020,Exp - Short-Term Contract & Agency Staff - Full Cost,International Trade And Transactions,Concept Information Technology Ltd T/A Concept Resourcing,181753,"7,637.12",Information Management Services,Large,Programme Expenditure
UK Statistics Authority,Office for National Statistics,07/05/2020,Exp - Purchase Of Goods/Services - Contractors,International Trade And Transactions,Concept Information Technology Ltd T/A Concept Resourcing,181753,"4,037.10",Information Management Services,Large,Programme Expenditure
UK Statistics Authority,Office for National Statistics,07/05/2020,Exp - Short-Term Contract & Agency Staff - Full Cost,Productivity Research And Professional Development,Concept Information Technology Ltd T/A Concept Resourcing,181753,"3,282.95",Information Management Services,Large,Programme Expenditure
UK Statistics Authority,Office for National Statistics,07/05/2020,Exp - Short-Term Contract & Agency Staff - Full Cost,Migration Statistics,Concept Information Technology Ltd T/A Concept Resourcing,181753,"7,253.81",Information Management Services,Large,Programme Expenditure
UK Statistics Authority,Office for National Statistics,07/05/2020,Exp - Purchase Of Goods/Services - Contractors,Tech Delivery Legacy Sp,Concept Information Technology Ltd T/A Concept Resourcing,181753,"4,200.00",Information Management Services,Large,Programme Expenditure
UK Statistics Authority,Office for National Statistics,07/05/2020,Exp - Purchase Of Goods/Services - IT Contractual Services,Tech Delivery Legacy Sp,Concept Information Technology Ltd T/A Concept Resourcing,181753,"9,000.00",Information Management Services,Large,Programme Expenditure
UK Statistics Authority,Office for National Statistics,07/05/2020,Exp - Purchase Of Goods/Services - Contractors,Office Of Chief Data And Information,Concept Information Technology Ltd T/A Concept Resourcing,181753,"8,586.00",Information Management Services,Large,Programme Expenditure
UK Statistics Authority,Office for National Statistics,07/05/2020,Exp - Short-Term Contract & Agency Staff - Full Cost,Interviewer Management TU,Concept Information Technology Ltd T/A Concept Resourcing,181753,94.03,Information Management Services,Large,Programme Expenditure
UK Statistics Authority,Office for National Statistics,07/05/2020,Exp - Short-Term Contract & Agency Staff - Full Cost,Prices Division,Concept Information Technology Ltd T/A Concept Resourcing,181753,"3,612.35",Information Management Services,Large,Programme Expenditure
UK Statistics Authority,Office for National Statistics,07/05/2020,Exp - Short-Term Contract & Agency Staff - Full Cost,Prices Division,Concept Information Technology Ltd T/A Concept Resourcing,181753,"3,627.85",Information Management Services,Large,Programme Expenditure
UK Statistics Authority,Office for National Statistics,07/05/2020,Exp - Purchase Of Goods/Services - IT Contractual Services,Survey Design And Assurance,Scc,181755,"34,692.00",DST Infrastructure Preparation,Large,Programme Expenditure
UK Statistics Authority,Office for National Statistics,07/05/2020,Telecoms,IT Operations,Bt Global Services,181756,"49,780.39",Telephony Charges,Large,Programme Expenditure
UK Statistics Authority,Office for National Statistics,07/05/2020,"ICT Outsourcing, Maintenance And Support",Finance,Phoenix Software Ltd,181758,"93,611.82",Finance Analytics,SME,Programme Expenditure
UK Statistics Authority,Office for National Statistics,07/05/2020,"ICT Outsourcing, Maintenance And Support",IT Operations,Phoenix Software Ltd,181758,"10,697.74",Information Management Services,SME,Programme Expenditure
UK Statistics Authority,Office for National Statistics,07/05/2020,Exp - Purchase Of Goods/Services - Contractors,Testing,Certes Computing Ltd,181759,"12,512.94",Information Management Services,SME,Programme Expenditure
UK Statistics Authority,Office for National Statistics,07/05/2020,Exp - Purchase Of Goods/Services - Contractors,Security Advisory,Certes Computing Ltd,181759,"13,322.50",Information Management Services,SME,Programme Expenditure
UK Statistics Authority,Office for National Statistics,07/05/2020,Exp - Purchase Of Goods/Services - Contractors,Tech Delivery Data As A Platform,Certes Computing Ltd,181759,"13,834.80",Information Management Services,SME,Programme Expenditure
UK Statistics Authority,Office for National Statistics,07/05/2020,Exp - Purchase Of Goods/Services - Contractors,Testing,La International,181760,"9,533.76",Information Management Services,SME,Programme Expenditure
UK Statistics Authority,Office for National Statistics,07/05/2020,Exp - Purchase Of Goods/Services - Contractors,Testing,La International,181760,"2,691.22",Information Management Services,SME,Programme Expenditure
UK Statistics Authority,Office for National Statistics,07/05/2020,Exp - Purchase Of Goods/Services - Contractors,Data Architecture,La International,181760,"3,524.22",Information Management Services,SME,Programme Expenditure
UK Statistics Authority,Office for National Statistics,07/05/2020,Exp - Purchase Of Goods/Services - Contractors,Data Architecture,La International,181760,"3,588.30",Information Management Services,SME,Programme Expenditure
UK Statistics Authority,Office for National Statistics,07/05/2020,Exp - Purchase Of Goods/Services - Contractors,Tech Delivery Data As A Platform,La International,181760,"12,917.88",Information Management Services,SME,Programme Expenditure
UK Statistics Authority,Office for National Statistics,07/05/2020,Exp - Short-Term Contract & Agency Staff - Full Cost,Tech Delivery Next Gen IT And Infrastructure,La International,181760,"1,663.67",Information Management Services,SME,Programme Expenditure
UK Statistics Authority,Office for National Statistics,07/05/2020,Exp - Short-Term Contract & Agency Staff - Full Cost,Tech Delivery Next Gen IT And Infrastructure,La International,181760,-30,Information Management Services,SME,Programme Expenditure
UK Statistics Authority,Office for National Statistics,07/05/2020,Exp - Purchase Of Goods/Services - Contractors,Digital Delivery,La International,181760,"18,659.16",Information Management Services,SME,Programme Expenditure
UK Statistics Authority,Office for National Statistics,07/05/2020,Exp - Short-Term Contract & Agency Staff - Full Cost,Beyond 2021 Research And Design,Parity Resources Limited,181774,"1,236.54",Information Management Services,Large,Programme Expenditure
UK Statistics Authority,Office for National Statistics,07/05/2020,Exp - Purchase Of Goods/Services - Contractors,Programme Delivery,Parity Resources Limited,181774,"10,890.00",Information Management Services,Large,Programme Expenditure
UK Statistics Authority,Office for National Statistics,07/05/2020,Exp - Short-Term Contract & Agency Staff - Full Cost,Strategy And Engagement,Parity Resources Limited,181774,800.98,Information Management Services,Large,Programme Expenditure
UK Statistics Authority,Office for National Statistics,07/05/2020,Exp - Short-Term Contract & Agency Staff - Full Cost,Ask Business Services,Parity Resources Limited,181774,732.6,Information Management Services,Large,Programme Expenditure
UK Statistics Authority,Office for National Statistics,07/05/2020,Exp - Purchase Of Goods/Services - Contractors,IT Applications,Parity Resources Limited,181774,"25,029.77",Information Management Services,Large,Programme Expenditure
UK Statistics Authority,Office for National Statistics,07/05/2020,Exp - Short-Term Contract & Agency Staff - Full Cost,Digital Delivery,Parity Resources Limited,181774,957.31,Information Management Services,Large,Programme Expenditure
UK Statistics Authority,Office for National Statistics,07/05/2020,Exp - Purchase Of Goods/Services - Contractors,Digital Delivery,Parity Resources Limited,181774,"9,330.05",Information Management Services,Large,Programme Expenditure
UK Statistics Authority,Office for National Statistics,07/05/2020,Exp - Short-Term Contract & Agency Staff - Full Cost,Public Sector And Households,Parity Resources Limited,181774,"1,001.22",Information Management Services,Large,Programme Expenditure
UK Statistics Authority,Office for National Statistics,07/05/2020,Exp - Short-Term Contract & Agency Staff - Full Cost,Social Survey Transformation Titchfield,Parity Resources Limited,181774,400.49,Information Management Services,Large,Programme Expenditure
UK Statistics Authority,Office for National Statistics,07/05/2020,Exp - Short-Term Contract & Agency Staff - Full Cost,Labour Market,Parity Resources Limited,181774,732.6,Information Management Services,Large,Programme Expenditure
UK Statistics Authority,Office for National Statistics,07/05/2020,Exp - Short-Term Contract & Agency Staff - Full Cost,Labour Market,Parity Resources Limited,181774,732.6,Information Management Services,Large,Programme Expenditure
UK Statistics Authority,Office for National Statistics,11/05/2020,"ICT Outsourcing, Maintenance And Support",IT Operations,Scc,181922,"266,542.08",Information Management Services,Large,Programme Expenditure
UK Statistics Authority,Office for National Statistics,11/05/2020,Exp - Purchase Of Goods/Services - IT Contractual Services,Researcher Support And Data Access ,Equiniti Limited,181925,"84,330.72",Secure Research Service,Large,Programme Expenditure
UK Statistics Authority,Office for National Statistics,11/05/2020,Exp - Purchase Of Goods And Services Consultants,Consultancy Management,Deloitte,181930,"28,131.84",Consultancy,Large,Programme Expenditure
UK Statistics Authority,Office for National Statistics,11/05/2020,Hosting,IT Operations,Amazon Web Services Inc,181936,"78,651.96",Cloud Services,Large,Programme Expenditure
UK Statistics Authority,Office for National Statistics,11/05/2020,Exp - Purchase Of Goods/Services - Contractors,Programme Delivery,Parity Resources Limited,181937,"15,251.04",Information Management Services,Large,Programme Expenditure
UK Statistics Authority,Office for National Statistics,11/05/2020,Exp - Purchase Of Goods/Services - Contractors,Finance,Parity Resources Limited,181937,720,Information Management Services,Large,Programme Expenditure
UK Statistics Authority,Office for National Statistics,11/05/2020,Exp - Purchase Of Goods/Services - Contractors,Commercial Services,Parity Resources Limited,181937,"10,829.52",Information Management Services,Large,Programme Expenditure
UK Statistics Authority,Office for National Statistics,11/05/2020,Exp - Purchase Of Goods/Services - Contractors,Data As A Service,Parity Resources Limited,181937,"1,435.39",Information Management Services,Large,Programme Expenditure
UK Statistics Authority,Office for National Statistics,11/05/2020,Exp - Purchase Of Goods/Services - Contractors,Data As A Service,Parity Resources Limited,181937,"11,483.14",Information Management Services,Large,Programme Expenditure
UK Statistics Authority,Office for National Statistics,11/05/2020,EXP - PURCHASE OF GOODS/SERVICES -  NON IT CONTRACTUAL PAYMENTS,Data Collection Service,HH Associates Ltd,181939,"30,000.00",Census Print and Post,SME,Programme Expenditure
UK Statistics Authority,Office for National Statistics,12/05/2020,Hosting,IT Operations,Crown Hosting Data Centres Limited,181947,"87,444.79",Information Management Services,SME,Programme Expenditure
UK Statistics Authority,Office for National Statistics,12/05/2020,Other Goods And Services,Crime Income And Wealth,Natcen Social Research,181948,"165,516.00",Statistical Services,Large,Programme Expenditure
UK Statistics Authority,Office for National Statistics,12/05/2020,Exp - Purchase Of Goods/Services - Contractors,Programme Delivery,Certes Computing Ltd,181950,"10,727.98",Information Management Services,SME,Programme Expenditure
UK Statistics Authority,Office for National Statistics,12/05/2020,Exp - Purchase Of Goods/Services - Contractors,Commercial Services,Certes Computing Ltd,181950,"11,528.57",Information Management Services,SME,Programme Expenditure
UK Statistics Authority,Office for National Statistics,12/05/2020,Exp - Purchase Of Goods/Services - Contractors,Data Architecture,Certes Computing Ltd,181950,"10,078.49",Information Management Services,SME,Programme Expenditure
UK Statistics Authority,Office for National Statistics,12/05/2020,Exp - Purchase Of Goods/Services - Contractors,Data Architecture,Certes Computing Ltd,181950,"7,263.32",Information Management Services,SME,Programme Expenditure
UK Statistics Authority,Office for National Statistics,12/05/2020,Exp - Purchase Of Goods/Services - Contractors,Tech Delivery Legacy Sp,Certes Computing Ltd,181950,"7,204.36",Information Management Services,SME,Programme Expenditure
UK Statistics Authority,Office for National Statistics,12/05/2020,Exp - Purchase Of Goods/Services - Contractors,Tech Delivery Legacy Sp,Certes Computing Ltd,181950,"11,518.84",Information Management Services,SME,Programme Expenditure
UK Statistics Authority,Office for National Statistics,12/05/2020,Exp - Purchase Of Goods/Services - Contractors,Tech Delivery Legacy Sp,Certes Computing Ltd,181950,"5,879.84",Information Management Services,SME,Programme Expenditure
UK Statistics Authority,Office for National Statistics,12/05/2020,Exp - Purchase Of Goods/Services - Contractors,IT Applications,Certes Computing Ltd,181950,"12,682.01",Information Management Services,SME,Programme Expenditure
UK Statistics Authority,Office for National Statistics,12/05/2020,Exp - Purchase Of Goods/Services - Contractors,Digital Delivery,Certes Computing Ltd,181950,"12,958.70",Information Management Services,SME,Programme Expenditure
UK Statistics Authority,Office for National Statistics,12/05/2020,Exp - Purchase Of Goods/Services - Contractors,Digital Delivery,Certes Computing Ltd,181950,"10,952.28",Information Management Services,SME,Programme Expenditure
UK Statistics Authority,Office for National Statistics,12/05/2020,Exp - Purchase Of Goods/Services - Contractors,Digital Delivery,Certes Computing Ltd,181950,"12,912.48",Information Management Services,SME,Programme Expenditure
UK Statistics Authority,Office for National Statistics,12/05/2020,Exp - Short-Term Contract & Agency Staff - Full Cost,Stakeholder Engagement And Comms,La International,181951,"1,657.01",Information Management Services,SME,Programme Expenditure
UK Statistics Authority,Office for National Statistics,12/05/2020,Exp - Purchase Of Goods/Services - Contractors,Testing,La International,181951,"6,087.30",Information Management Services,SME,Programme Expenditure
UK Statistics Authority,Office for National Statistics,12/05/2020,Exp - Purchase Of Goods/Services - Contractors,Programme Delivery,La International,181951,"3,366.90",Information Management Services,SME,Programme Expenditure
UK Statistics Authority,Office for National Statistics,12/05/2020,Exp - Purchase Of Goods/Services - Contractors,Security Advisory,La International,181951,"13,840.63",Information Management Services,SME,Programme Expenditure
UK Statistics Authority,Office for National Statistics,12/05/2020,Exp - Purchase Of Goods/Services - Contractors,Data Architecture,La International,181951,"8,458.16",Information Management Services,SME,Programme Expenditure
UK Statistics Authority,Office for National Statistics,12/05/2020,Exp - Purchase Of Goods/Services - Contractors,Tech Delivery Legacy Sp,La International,181951,"2,870.64",Information Management Services,SME,Programme Expenditure
UK Statistics Authority,Office for National Statistics,12/05/2020,Exp - Purchase Of Goods/Services - Contractors,Tech Delivery Data As A Platform,La International,181951,"8,330.09",Information Management Services,SME,Programme Expenditure
UK Statistics Authority,Office for National Statistics,12/05/2020,Exp - Purchase Of Goods/Services - Contractors,IT Applications,La International,181951,"22,952.67",Information Management Services,SME,Programme Expenditure
UK Statistics Authority,Office for National Statistics,12/05/2020,Exp - Purchase Of Goods/Services - Contractors,Digital Delivery,La International,181951,"1,537.85",Information Management Services,SME,Programme Expenditure
UK Statistics Authority,Office for National Statistics,12/05/2020,Exp - Purchase Of Goods/Services - Contractors,Digital Delivery,La International,181951,"12,302.78",Information Management Services,SME,Programme Expenditure
UK Statistics Authority,Office for National Statistics,12/05/2020,Exp - Purchase Of Goods/Services - Contractors,Digital Delivery,La International,181951,"3,588.30",Information Management Services,SME,Programme Expenditure
UK Statistics Authority,Office for National Statistics,12/05/2020,Exp - Purchase Of Goods/Services - Contractors,Digital Delivery,La International,181951,"5,741.28",Information Management Services,SME,Programme Expenditure
UK Statistics Authority,Office for National Statistics,12/05/2020,Exp - Purchase Of Goods/Services - Contractors,Social Survey Transformation Titchfield,La International,181951,"2,563.10",Information Management Services,SME,Programme Expenditure
UK Statistics Authority,Office for National Statistics,12/05/2020,Stationery,Lodgecard,Royal Bank of Scotland,181954,"4,944.78",Multiple Procurement Card Purchases  - Stationery ,Large,Programme Expenditure
UK Statistics Authority,Office for National Statistics,12/05/2020,Other Goods And Services,GPC,Royal Bank of Scotland,181954,"25,433.64",Multiple Procurement Card Purchases - other goods/services  ,Large,Programme Expenditure
UK Statistics Authority,Office for National Statistics,12/05/2020,Travel And Subsistence,Car Hire,Royal Bank of Scotland,181954,"20,308.50",Multiple Procurement Card Purchases - Car Hire  ,Large,Programme Expenditure
UK Statistics Authority,Office for National Statistics,12/05/2020,Exp - Purchase Of Goods/Services - Contractors,Business Architecture,Parity Resources Limited,181960,"8,074.08",Information Management Services,Large,Programme Expenditure
UK Statistics Authority,Office for National Statistics,12/05/2020,Exp - Purchase Of Goods/Services - Contractors,Testing,Parity Resources Limited,181960,"13,264.56",Information Management Services,Large,Programme Expenditure
UK Statistics Authority,Office for National Statistics,12/05/2020,Exp - Purchase Of Goods/Services - Contractors,Programme Delivery,Parity Resources Limited,181960,"14,127.72",Information Management Services,Large,Programme Expenditure
UK Statistics Authority,Office for National Statistics,12/05/2020,Exp - Purchase Of Goods/Services - Contractors,HR Business Partners,Parity Resources Limited,181960,"1,344.00",Information Management Services,Large,Programme Expenditure
UK Statistics Authority,Office for National Statistics,12/05/2020,Exp - Purchase Of Goods/Services - Contractors,Commercial Services,Parity Resources Limited,181960,"10,957.68",Information Management Services,Large,Programme Expenditure
UK Statistics Authority,Office for National Statistics,12/05/2020,Exp - Short-Term Contract & Agency Staff - Full Cost,ONS And GSS Careers,Parity Resources Limited,181960,785.88,Information Management Services,Large,Programme Expenditure
UK Statistics Authority,Office for National Statistics,12/05/2020,Exp - Purchase Of Goods/Services - Contractors,Security Advisory,Parity Resources Limited,181960,"12,918.53",Information Management Services,Large,Programme Expenditure
UK Statistics Authority,Office for National Statistics,12/05/2020,Exp - Purchase Of Goods/Services - Contractors,Tech Delivery Legacy Sp,Parity Resources Limited,181960,"1,153.44",Information Management Services,Large,Programme Expenditure
UK Statistics Authority,Office for National Statistics,12/05/2020,Exp - Purchase Of Goods/Services - Contractors,Digital Delivery,Parity Resources Limited,181960,"9,330.05",Information Management Services,Large,Programme Expenditure
UK Statistics Authority,Office for National Statistics,12/05/2020,Exp - Purchase Of Goods/Services - Contractors,Interviewer Support,Parity Resources Limited,181960,961.2,Information Management Services,Large,Programme Expenditure
UK Statistics Authority,Office for National Statistics,13/05/2020,Exp - Purchase Of Goods/Services - Contractors,Testing,La International,181975,"10,563.59",Information Management Services,SME,Programme Expenditure
UK Statistics Authority,Office for National Statistics,13/05/2020,Exp - Purchase Of Goods/Services - Contractors,Testing,La International,181975,"2,691.22",Information Management Services,SME,Programme Expenditure
UK Statistics Authority,Office for National Statistics,13/05/2020,Exp - Purchase Of Goods/Services - Contractors,Data Architecture,La International,181975,"3,524.22",Information Management Services,SME,Programme Expenditure
UK Statistics Authority,Office for National Statistics,13/05/2020,Exp - Purchase Of Goods/Services - Contractors,Data Architecture,La International,181975,"3,588.30",Information Management Services,SME,Programme Expenditure
UK Statistics Authority,Office for National Statistics,13/05/2020,Exp - Purchase Of Goods/Services - Contractors,IT Applications,La International,181975,"8,599.36",Information Management Services,SME,Programme Expenditure
UK Statistics Authority,Office for National Statistics,13/05/2020,Exp - Purchase Of Goods/Services - Contractors,Digital Delivery,La International,181975,"-6,279.59",Information Management Services,SME,Programme Expenditure
UK Statistics Authority,Office for National Statistics,13/05/2020,Exp - Purchase Of Goods/Services - Contractors,Digital Delivery,La International,181975,"-1,794.17",Information Management Services,SME,Programme Expenditure
UK Statistics Authority,Office for National Statistics,13/05/2020,Exp - Purchase Of Goods/Services - Contractors,Digital Delivery,La International,181975,"7,176.60",Information Management Services,SME,Programme Expenditure
UK Statistics Authority,Office for National Statistics,13/05/2020,Exp - Purchase Of Goods/Services - Contractors,Social Survey Transformation Titchfield,La International,181975,"2,563.10",Information Management Services,SME,Programme Expenditure
UK Statistics Authority,Office for National Statistics,13/05/2020,Exp - Purchase Of Goods/Services - Contractors,Commercial Services,Malikshaw Interim & Executive,181980,"6,480.00",Information Management Services,SME,Programme Expenditure
UK Statistics Authority,Office for National Statistics,13/05/2020,Exp - Purchase Of Goods/Services - Contractors,Data Science Campus,Malikshaw Interim & Executive,181980,"10,800.00",Information Management Services,SME,Programme Expenditure
UK Statistics Authority,Office for National Statistics,13/05/2020,Exp - Purchase Of Goods/Services - Contractors,Business Statistics Transformation,Malikshaw Interim & Executive,181980,"11,836.37",Information Management Services,SME,Programme Expenditure
UK Statistics Authority,Office for National Statistics,13/05/2020,EXP - PURCHASE OF GOODS/SERVICES -  NON IT CONTRACTUAL PAYMENTS,Covid Infection Survey,HH Associates Ltd,181982,"510,943.20",Survey Print and Post,SME,Programme Expenditure
UK Statistics Authority,Office for National Statistics,13/05/2020,Exp - Purchase Of Goods And Services Consultants,Consultancy Management,Bloom Procurement Services Ltd,181983,"184,494.41",Consultancy,Large,Programme Expenditure
UK Statistics Authority,Office for National Statistics,13/05/2020,Exp - Purchase Of Goods/Services - Contractors,Stakeholder Engagement And Comms,Parity Resources Limited,181985,"2,846.16",Information Management Services,Large,Programme Expenditure
UK Statistics Authority,Office for National Statistics,13/05/2020,"ICT Outsourcing, Maintenance And Support",Digital Publishing,Parity Resources Limited,181985,"25,920.00",Information Management Services,Large,Programme Expenditure
UK Statistics Authority,Office for National Statistics,13/05/2020,Exp - Short-Term Contract & Agency Staff - Full Cost,International Trade And Transactions,Parity Resources Limited,181985,"3,626.04",Information Management Services,Large,Programme Expenditure
UK Statistics Authority,Office for National Statistics,13/05/2020,Exp - Purchase Of Goods/Services - Contractors,International Trade And Transactions,Parity Resources Limited,181985,"11,424.00",Information Management Services,Large,Programme Expenditure
UK Statistics Authority,Office for National Statistics,13/05/2020,Exp - Short-Term Contract & Agency Staff - Full Cost,Social Survey Transformation Titchfield,Parity Resources Limited,181985,400.49,Information Management Services,Large,Programme Expenditure
UK Statistics Authority,Office for National Statistics,13/05/2020,Other Goods And Services,Beyond 2021 Research And Design,The Sensible Code Company,181986,"112,560.00",Information Management Services,SME,Programme Expenditure
UK Statistics Authority,Office for National Statistics,14/05/2020,FM Contract Payments,Mitie Payments,Vinci Construction UK Limited,182073,"269,132.67",Facilities Mangement Services,Large,Programme Expenditure
UK Statistics Authority,Office for National Statistics,14/05/2020,Exp - Purchase Of Goods/Services - IT Contractual Services,DST Reapportioning,Empiric Solutions Limited,182074,"45,240.00",Information Management Services,Large,Programme Expenditure
UK Statistics Authority,Office for National Statistics,14/05/2020,EXP - PURCHASE OF GOODS/SERVICES -  NON IT CONTRACTUAL PAYMENTS,Census CCS Data Collection,Adecco UK Limited,182084,"510,000.00",Census People Services ,SME,Programme Expenditure
UK Statistics Authority,Office for National Statistics,14/05/2020,Exp - Purchase Of Goods/Services - Contractors,Programme Delivery,Parity Resources Limited,182088,"11,982.96",Information Management Services,Large,Programme Expenditure
UK Statistics Authority,Office for National Statistics,14/05/2020,Exp - Short-Term Contract & Agency Staff - Full Cost,International Trade And Transactions,Parity Resources Limited,182088,"2,881.90",Information Management Services,Large,Programme Expenditure
UK Statistics Authority,Office for National Statistics,14/05/2020,Exp - Purchase Of Goods/Services - Contractors,International Trade And Transactions,Parity Resources Limited,182088,"11,534.40",Information Management Services,Large,Programme Expenditure
UK Statistics Authority,Office for National Statistics,14/05/2020,Exp - Purchase Of Goods/Services - Contractors,International Trade And Transactions,Parity Resources Limited,182088,"9,502.08",Information Management Services,Large,Programme Expenditure
UK Statistics Authority,Office for National Statistics,14/05/2020,Exp - Short-Term Contract & Agency Staff - Full Cost,Recruitment ,Parity Resources Limited,182088,"1,603.80",Information Management Services,Large,Programme Expenditure
UK Statistics Authority,Office for National Statistics,14/05/2020,Exp - Short-Term Contract & Agency Staff - Full Cost,Recruitment ,Parity Resources Limited,182088,"3,604.40",Information Management Services,Large,Programme Expenditure
UK Statistics Authority,Office for National Statistics,14/05/2020,Exp - Short-Term Contract & Agency Staff - Full Cost,Data Architecture,Parity Resources Limited,182088,"3,573.90",Information Management Services,Large,Programme Expenditure
UK Statistics Authority,Office for National Statistics,14/05/2020,Exp - Purchase Of Goods/Services - Contractors,Interviewer Support,Parity Resources Limited,182088,"1,243.13",Information Management Services,Large,Programme Expenditure
UK Statistics Authority,Office for National Statistics,15/05/2020,Exp - Short-Term Contract & Agency Staff - Full Cost,Business Change Support,Concept Information Technology Ltd T/A Concept Resourcing,182094,"3,956.59",Information Management Services,Large,Programme Expenditure
UK Statistics Authority,Office for National Statistics,15/05/2020,Exp - Short-Term Contract & Agency Staff - Full Cost,Business Change Support,Concept Information Technology Ltd T/A Concept Resourcing,182094,"3,625.96",Information Management Services,Large,Programme Expenditure
UK Statistics Authority,Office for National Statistics,15/05/2020,Exp - Short-Term Contract & Agency Staff - Full Cost,Business Change Support,Concept Information Technology Ltd T/A Concept Resourcing,182094,"3,353.40",Information Management Services,Large,Programme Expenditure
UK Statistics Authority,Office for National Statistics,15/05/2020,Exp - Short-Term Contract & Agency Staff - Full Cost,Business Change Support,Concept Information Technology Ltd T/A Concept Resourcing,182094,"18,568.81",Information Management Services,Large,Programme Expenditure
UK Statistics Authority,Office for National Statistics,15/05/2020,Exp - Purchase Of Goods/Services - Contractors,Business Change Support,Concept Information Technology Ltd T/A Concept Resourcing,182094,"3,230.88",Information Management Services,Large,Programme Expenditure
UK Statistics Authority,Office for National Statistics,15/05/2020,Exp - Purchase Of Goods/Services - Contractors,Business Change Support,Concept Information Technology Ltd T/A Concept Resourcing,182094,508.68,Information Management Services,Large,Programme Expenditure
UK Statistics Authority,Office for National Statistics,15/05/2020,Exp - Short-Term Contract & Agency Staff - Full Cost,International Trade And Transactions,Concept Information Technology Ltd T/A Concept Resourcing,182094,"3,553.26",Information Management Services,Large,Programme Expenditure
UK Statistics Authority,Office for National Statistics,15/05/2020,Other Goods And Services,Overseas Development,"Foreign, Commonwealth & Development Office",182095,"81,049.25",Subscription and Support Services,Large,Programme Expenditure
UK Statistics Authority,Office for National Statistics,15/05/2020,"ICT Outsourcing, Maintenance And Support",IT Operations,Boxxe,182101,"60,703.25",Information Management Services,SME,Programme Expenditure
UK Statistics Authority,Office for National Statistics,15/05/2020,Exp - Purchase Of Goods/Services - Contractors,Testing,Certes Computing Ltd,182103,-0.31,Information Management Services,SME,Programme Expenditure
UK Statistics Authority,Office for National Statistics,15/05/2020,Exp - Purchase Of Goods/Services - Contractors,Senior Management,Certes Computing Ltd,182103,"13,834.80",Information Management Services,SME,Programme Expenditure
UK Statistics Authority,Office for National Statistics,15/05/2020,Exp - Purchase Of Goods/Services - Contractors,Tech Delivery Legacy Sp,Certes Computing Ltd,182103,"1,439.86",Information Management Services,SME,Programme Expenditure
UK Statistics Authority,Office for National Statistics,15/05/2020,Exp - Purchase Of Goods/Services - Contractors,Tech Delivery Legacy Sp,Certes Computing Ltd,182103,"11,518.84",Information Management Services,SME,Programme Expenditure
UK Statistics Authority,Office for National Statistics,15/05/2020,Exp - Purchase Of Goods/Services - Contractors,Digital Delivery,Certes Computing Ltd,182103,"13,603.68",Information Management Services,SME,Programme Expenditure
UK Statistics Authority,Office for National Statistics,15/05/2020,Exp - Purchase Of Goods/Services - Contractors,Testing,La International,182104,"9,867.82",Information Management Services,SME,Programme Expenditure
UK Statistics Authority,Office for National Statistics,15/05/2020,Exp - Purchase Of Goods/Services - Contractors,Data Architecture,La International,182104,"3,844.62",Information Management Services,SME,Programme Expenditure
UK Statistics Authority,Office for National Statistics,15/05/2020,Exp - Purchase Of Goods/Services - Contractors,Tech Delivery SRS,La International,182104,"3,588.30",Information Management Services,SME,Programme Expenditure
UK Statistics Authority,Office for National Statistics,15/05/2020,Exp - Purchase Of Goods/Services - Contractors,Tech Delivery Legacy Sp,La International,182104,"6,343.60",Information Management Services,SME,Programme Expenditure
UK Statistics Authority,Office for National Statistics,15/05/2020,Exp - Purchase Of Goods/Services - Contractors,Tech Delivery Legacy Sp,La International,182104,"2,870.64",Information Management Services,SME,Programme Expenditure
UK Statistics Authority,Office for National Statistics,15/05/2020,Exp - Purchase Of Goods/Services - Contractors,Tech Delivery Data As A Platform,La International,182104,"3,203.88",Information Management Services,SME,Programme Expenditure
UK Statistics Authority,Office for National Statistics,15/05/2020,Exp - Purchase Of Goods/Services - Contractors,IT Applications,La International,182104,"9,227.16",Information Management Services,SME,Programme Expenditure
UK Statistics Authority,Office for National Statistics,15/05/2020,End User Software And Hardware,IT Operations,Computacenter (Uk) Limited,182109,"27,864.00",Software Licenses,Large,Programme Expenditure
UK Statistics Authority,Office for National Statistics,15/05/2020,Exp - Purchase Of Goods/Services - Contractors,Testing,Methods Business & Digital Technology Ltd,182113,"7,500.00",Information Management Services,Large,Programme Expenditure
UK Statistics Authority,Office for National Statistics,15/05/2020,Exp - Purchase Of Goods/Services - IT Contractual Services,DST Reapportioning,Methods Business & Digital Technology Ltd,182113,"50,730.00",Information Management Services,Large,Programme Expenditure
UK Statistics Authority,Office for National Statistics,15/05/2020,Exp - Purchase Of Goods/Services - IT Contractual Services,Tech Delivery Next Gen IT And Infrastructure,Diegesis Limited,182116,"40,579.96",Information Management Services,Large,Programme Expenditure
UK Statistics Authority,Office for National Statistics,15/05/2020,Office Related Goods And Services,Interviewer Management FiF,Flexiform,182117,"20,532.00",Office Furniture,Large,Programme Expenditure
UK Statistics Authority,Office for National Statistics,15/05/2020,Office Related Goods And Services,Business Analysis & Soc Survey,Flexiform,182117,"13,764.00",Office Furniture,Large,Programme Expenditure
UK Statistics Authority,Office for National Statistics,18/05/2020,"ICT Outsourcing, Maintenance And Support",IT Operations,Scc,182165,"29,119.15",Information Management Services,Large,Programme Expenditure
UK Statistics Authority,Office for National Statistics,18/05/2020,Telecoms,IT Operations,Bt Global Services,182166,"26,324.09",Telephony Charges,Large,Programme Expenditure
UK Statistics Authority,Office for National Statistics,18/05/2020,End User Software And Hardware,IT Operations,Computacenter (Uk) Limited,182172,"125,430.82",Software Licenses,Large,Programme Expenditure
UK Statistics Authority,Office for National Statistics,18/05/2020,"ICT Outsourcing, Maintenance And Support",Tech Delivery SRS,Bloom Procurement Services Ltd,182177,"59,573.51",Consultancy,Large,Programme Expenditure
UK Statistics Authority,Office for National Statistics,18/05/2020,"ICT Outsourcing, Maintenance And Support",IT Operations,CTS (Cloud Technology Solutions Ltd),182180,"42,000.00",DST Infrastructure Preparation,Large,Programme Expenditure
UK Statistics Authority,Office for National Statistics,18/05/2020,Hosting,IT Operations,CTS (Cloud Technology Solutions Ltd),182180,"22,253.70",Information Management Services,Large,Programme Expenditure
UK Statistics Authority,Office for National Statistics,18/05/2020,EXP - PURCHASE OF GOODS/SERVICES -  NON IT CONTRACTUAL PAYMENTS,Census CCS Data Collection,Adecco UK Limited,182181,"510,000.00",Census People Services ,SME,Programme Expenditure
UK Statistics Authority,Office for National Statistics,19/05/2020,Exp - Purchase Of Goods/Services - Other Facilities Costs,PBS Leadership,Tandem Property Asset Management LLP - DG Lease Limited Service Charge Account,182253,"53,369.20",Corporate Services,Large,Programme Expenditure
UK Statistics Authority,Office for National Statistics,19/05/2020,Rent Payable,Property London,Tandem Property Asset Management LLP - DG Lease Limited Service Charge Account,182253,"243,432.00",Corporate Services,Large,Programme Expenditure
UK Statistics Authority,Office for National Statistics,19/05/2020,Exp - Purchase Of Goods/Services - Other Facilities Costs,Property London,Tandem Property Asset Management LLP - DG Lease Limited Service Charge Account,182253,"-4,332.80",Corporate Services,Large,Programme Expenditure
UK Statistics Authority,Office for National Statistics,19/05/2020,Exp - Purchase Of Goods/Services - Contractors,Operations,Parity Resources Limited,182254,"8,078.40",Information Management Services,Large,Programme Expenditure
UK Statistics Authority,Office for National Statistics,19/05/2020,Exp - Purchase Of Goods/Services - Contractors,Operations,Parity Resources Limited,182254,"12,117.60",Information Management Services,Large,Programme Expenditure
UK Statistics Authority,Office for National Statistics,19/05/2020,Exp - Short-Term Contract & Agency Staff - Full Cost,Data Architecture,Parity Resources Limited,182254,732.6,Information Management Services,Large,Programme Expenditure
UK Statistics Authority,Office for National Statistics,19/05/2020,Exp - Purchase Of Goods/Services - Contractors,Digital Delivery,Parity Resources Limited,182254,"12,200.83",Information Management Services,Large,Programme Expenditure
UK Statistics Authority,Office for National Statistics,19/05/2020,Exp - Purchase Of Goods/Services - Contractors,Digital Delivery,Parity Resources Limited,182254,"12,918.53",Information Management Services,Large,Programme Expenditure
UK Statistics Authority,Office for National Statistics,19/05/2020,Exp - Short-Term Contract & Agency Staff - Full Cost,Public Sector And Households,Parity Resources Limited,182254,"1,001.22",Information Management Services,Large,Programme Expenditure
UK Statistics Authority,Office for National Statistics,19/05/2020,Exp - Short-Term Contract & Agency Staff - Full Cost,Labour Market,Parity Resources Limited,182254,732.6,Information Management Services,Large,Programme Expenditure
UK Statistics Authority,Office for National Statistics,19/05/2020,Exp - Short-Term Contract & Agency Staff - Full Cost,Labour Market,Parity Resources Limited,182254,732.6,Information Management Services,Large,Programme Expenditure
UK Statistics Authority,Office for National Statistics,19/05/2020,Surveys,Data Science Campus,Telefonica UK Limited,182255,"255,000.00",Statistical Services,Large,Programme Expenditure
UK Statistics Authority,Office for National Statistics,20/05/2020,EXP - PURCHASE OF GOODS/SERVICES -  NON IT CONTRACTUAL PAYMENTS,Data Collection Service,Serco Ltd,182260,"32,140.57",Census Contact Centre,Large,Programme Expenditure
UK Statistics Authority,Office for National Statistics,20/05/2020,"ICT Outsourcing, Maintenance And Support",Learning And Capability,Synergy Learning,182263,"38,734.80",Subscription and Support Services,Small,Programme Expenditure
UK Statistics Authority,Office for National Statistics,20/05/2020,Exp - Purchase Of Goods/Services - Contractors,Testing,Methods Business & Digital Technology Ltd,182265,"9,000.00",Information Management Services,Large,Programme Expenditure
UK Statistics Authority,Office for National Statistics,20/05/2020,Exp - Purchase Of Goods/Services - IT Contractual Services,DST Reapportioning,Methods Business & Digital Technology Ltd,182265,"59,943.00",Information Management Services,Large,Programme Expenditure
UK Statistics Authority,Office for National Statistics,20/05/2020,Exp - Purchase Of Goods/Services - Contractors,Business Architecture,LA FOSSE ASSOCIATES LIMITED,182267,"50,850.00",Information Management Services,Large,Programme Expenditure
UK Statistics Authority,Office for National Statistics,20/05/2020,Exp - Purchase Of Goods/Services - Contractors,Business Architecture,LA FOSSE ASSOCIATES LIMITED,182267,"36,570.00",Information Management Services,Large,Programme Expenditure
UK Statistics Authority,Office for National Statistics,20/05/2020,Exp - Purchase Of Goods/Services - Contractors,Business Architecture,LA FOSSE ASSOCIATES LIMITED,182267,"23,460.00",Information Management Services,Large,Programme Expenditure
UK Statistics Authority,Office for National Statistics,20/05/2020,Exp - Purchase Of Goods/Services - Contractors,Tech Delivery Legacy Sp,LA FOSSE ASSOCIATES LIMITED,182267,"1,440.00",Information Management Services,Large,Programme Expenditure
UK Statistics Authority,Office for National Statistics,20/05/2020,Exp - Purchase Of Goods/Services - Contractors,Tech Delivery Legacy Sp,LA FOSSE ASSOCIATES LIMITED,182267,"11,520.00",Information Management Services,Large,Programme Expenditure
UK Statistics Authority,Office for National Statistics,20/05/2020,Exp - Purchase Of Goods/Services - IT Contractual Services,International Trade And Transactions,Mango Solutions,182268,"16,320.00",Information Management Services,SME,Programme Expenditure
UK Statistics Authority,Office for National Statistics,20/05/2020,Exp - Purchase Of Goods/Services - IT Contractual Services,International Trade And Transactions,Mango Solutions,182268,"48,960.00",Information Management Services,SME,Programme Expenditure
UK Statistics Authority,Office for National Statistics,20/05/2020,Exp - Purchase Of Goods/Services - IT Contractual Services,Digital Publishing,E Synergy Solutions,182269,"12,000.00",Information Management Services,SME,Programme Expenditure
UK Statistics Authority,Office for National Statistics,20/05/2020,Exp - Purchase Of Goods/Services - IT Contractual Services,DST Reapportioning,E Synergy Solutions,182269,"281,790.00",Information Management Services,SME,Programme Expenditure
UK Statistics Authority,Office for National Statistics,20/05/2020,Exp - Purchase Of Goods/Services - IT Contractual Services,Digital Publishing,Swirrl It Ltd,182270,"32,882.40",Information Management Services,SME,Programme Expenditure
UK Statistics Authority,Office for National Statistics,20/05/2020,Exp - Permanent UK Staff - PRP Voucher Payments,ONS Corporate Funds,Park Retail Ltd,182271,"13,371.40",Love2Shop Employee Performance Reward Payment ,Large,Programme Expenditure
UK Statistics Authority,Office for National Statistics,20/05/2020,Exp - Purchase Of Goods/Services - Incentive Payments,Survey Management,Park Retail Ltd,182271,-682.67,Survey Response Incentive Vouchers,Large,Programme Expenditure
UK Statistics Authority,Office for National Statistics,20/05/2020,Exp - Purchase Of Goods/Services - Incentive Payments,Survey Management,Park Retail Ltd,182271,"21,360.00",Survey Response Incentive Vouchers,Large,Programme Expenditure
UK Statistics Authority,Office for National Statistics,20/05/2020,Hosting,IT Operations,Equiniti Limited,182275,"48,393.12",Information Management Services,Large,Programme Expenditure
UK Statistics Authority,Office for National Statistics,20/05/2020,Survey Incentive Vouchers,Business Analysis & Soc Survey,The Senator Group,182278,"70,922.76",Office Furniture,Large,Programme Expenditure
UK Statistics Authority,Office for National Statistics,20/05/2020,Exp - Short-Term Contract & Agency Staff - Full Cost,Stakeholder Engagement And Comms,La International,182281,"1,657.01",Information Management Services,SME,Programme Expenditure
UK Statistics Authority,Office for National Statistics,20/05/2020,Exp - Purchase Of Goods/Services - Contractors,Testing,La International,182281,"10,975.50",Information Management Services,SME,Programme Expenditure
UK Statistics Authority,Office for National Statistics,20/05/2020,Exp - Purchase Of Goods/Services - Contractors,Testing,La International,182281,"2,691.22",Information Management Services,SME,Programme Expenditure
UK Statistics Authority,Office for National Statistics,20/05/2020,Exp - Purchase Of Goods/Services - Contractors,Business Architecture Transformation And Statistical Strategy,La International,182281,"7,176.62",Information Management Services,SME,Programme Expenditure
UK Statistics Authority,Office for National Statistics,20/05/2020,Exp - Purchase Of Goods/Services - Contractors,Data Architecture,La International,182281,"2,819.38",Information Management Services,SME,Programme Expenditure
UK Statistics Authority,Office for National Statistics,20/05/2020,Exp - Purchase Of Goods/Services - Contractors,Data Architecture,La International,182281,"2,870.64",Information Management Services,SME,Programme Expenditure
UK Statistics Authority,Office for National Statistics,20/05/2020,Exp - Purchase Of Goods/Services - Contractors,Tech Delivery SRS,La International,182281,"2,870.64",Information Management Services,SME,Programme Expenditure
UK Statistics Authority,Office for National Statistics,20/05/2020,Exp - Purchase Of Goods/Services - Contractors,IT Applications,La International,182281,"7,381.72",Information Management Services,SME,Programme Expenditure
UK Statistics Authority,Office for National Statistics,20/05/2020,Exp - Purchase Of Goods/Services - Contractors,Digital Delivery,La International,182281,"8,073.76",Information Management Services,SME,Programme Expenditure
UK Statistics Authority,Office for National Statistics,20/05/2020,Exp - Purchase Of Goods/Services - Contractors,Digital Delivery,La International,182281,"5,766.98",Information Management Services,SME,Programme Expenditure
UK Statistics Authority,Office for National Statistics,20/05/2020,Exp - Purchase Of Goods/Services - Contractors,Digital Delivery,La International,182281,"3,844.62",Information Management Services,SME,Programme Expenditure
UK Statistics Authority,Office for National Statistics,20/05/2020,Exp - Purchase Of Goods/Services - Contractors,Digital Delivery,La International,182281,"3,588.30",Information Management Services,SME,Programme Expenditure
UK Statistics Authority,Office for National Statistics,20/05/2020,Exp - Purchase Of Goods/Services - Contractors,Social Survey Transformation Titchfield,La International,182281,"2,563.10",Information Management Services,SME,Programme Expenditure
UK Statistics Authority,Office for National Statistics,21/05/2020,Surveys,Crime Statistics,Kantar UK Ltd,182434,"454,199.10",Statistical Services,Large,Programme Expenditure
UK Statistics Authority,Office for National Statistics,21/05/2020,Exp - Purchase Of Goods/Services - IT Contractual Services,DST Reapportioning,Methods Business & Digital Technology Ltd,182435,"52,926.00",Information Management Services,Large,Programme Expenditure
UK Statistics Authority,Office for National Statistics,21/05/2020,Office Related Goods And Services,Business Analysis & Soc Survey,Flexiform,182437,"28,488.00",Office Furniture,Large,Programme Expenditure
UK Statistics Authority,Office for National Statistics,21/05/2020,Exp - Purchase Of Goods/Services - IT Contractual Services,IT Applications,Diegesis Limited,182438,"101,459.86",Information Management Services,Large,Programme Expenditure
UK Statistics Authority,Office for National Statistics,22/05/2020,End User Software And Hardware,IT Operations,Probrand Ltd,182498,"39,873.60",Computers and Peripherals ,SME,Programme Expenditure
UK Statistics Authority,Office for National Statistics,22/05/2020,Other Professional Services,Policy Secretariat,Government Legal Department,182505,"50,087.46",Legal Services,Large,Programme Expenditure
UK Statistics Authority,Office for National Statistics,27/05/2020,Exp - Purchase Of Goods/Services - Contractors,Testing,La International,182522,"25,221.14",Information Management Services,SME,Programme Expenditure
UK Statistics Authority,Office for National Statistics,27/05/2020,Exp - Purchase Of Goods/Services - Contractors,Sustainability And Inequalities,La International,182522,"7,576.56",Information Management Services,SME,Programme Expenditure
UK Statistics Authority,Office for National Statistics,27/05/2020,Exp - Purchase Of Goods/Services - Contractors,Data Architecture,La International,182522,"3,524.22",Information Management Services,SME,Programme Expenditure
UK Statistics Authority,Office for National Statistics,27/05/2020,Exp - Purchase Of Goods/Services - Contractors,Data Architecture,La International,182522,"3,588.30",Information Management Services,SME,Programme Expenditure
UK Statistics Authority,Office for National Statistics,27/05/2020,Exp - Purchase Of Goods/Services - Contractors,Tech Delivery SRS,La International,182522,"3,588.30",Information Management Services,SME,Programme Expenditure
UK Statistics Authority,Office for National Statistics,27/05/2020,Exp - Purchase Of Goods/Services - Contractors,Tech Delivery Legacy Sp,La International,182522,"2,870.64",Information Management Services,SME,Programme Expenditure
UK Statistics Authority,Office for National Statistics,27/05/2020,Exp - Purchase Of Goods/Services - Contractors,IT Applications,La International,182522,"16,747.64",Information Management Services,SME,Programme Expenditure
UK Statistics Authority,Office for National Statistics,27/05/2020,Exp - Purchase Of Goods/Services - Contractors,Social Survey Transformation Titchfield,La International,182522,"3,203.88",Information Management Services,SME,Programme Expenditure
UK Statistics Authority,Office for National Statistics,27/05/2020,IT (Owned) At Cost - Additions,IT Operations,Computacenter (Uk) Limited,182524,"30,952.62",Software Licenses,Large,Programme Expenditure
UK Statistics Authority,Office for National Statistics,27/05/2020,"ICT Outsourcing, Maintenance And Support",IT Operations,Computacenter (Uk) Limited,182524,"6,309.80",Software Licenses,Large,Programme Expenditure
UK Statistics Authority,Office for National Statistics,27/05/2020,Surveys,Prices Division,Kantar UK Ltd,182534,"205,897.00",Statistical Services,Large,Programme Expenditure
UK Statistics Authority,Office for National Statistics,27/05/2020,Exp - Short-Term Contract & Agency Staff - Full Cost,Beyond 2021 Research And Design,Parity Resources Limited,182537,"1,069.44",Information Management Services,Large,Programme Expenditure
UK Statistics Authority,Office for National Statistics,27/05/2020,Exp - Purchase Of Goods/Services - Contractors,Testing,Parity Resources Limited,182537,"6,480.00",Information Management Services,Large,Programme Expenditure
UK Statistics Authority,Office for National Statistics,27/05/2020,Exp - Short-Term Contract & Agency Staff - Full Cost,Strategy And Engagement,Parity Resources Limited,182537,800.98,Information Management Services,Large,Programme Expenditure
UK Statistics Authority,Office for National Statistics,27/05/2020,Exp - Purchase Of Goods/Services - Contractors,Analysis Microdata And Engagement,Parity Resources Limited,182537,"3,024.00",Information Management Services,Large,Programme Expenditure
UK Statistics Authority,Office for National Statistics,27/05/2020,Exp - Short-Term Contract & Agency Staff - Full Cost,ONS And GSS Careers,Parity Resources Limited,182537,628.7,Information Management Services,Large,Programme Expenditure
UK Statistics Authority,Office for National Statistics,27/05/2020,Exp - Short-Term Contract & Agency Staff - Full Cost,Data Architecture,Parity Resources Limited,182537,"1,188.00",Information Management Services,Large,Programme Expenditure
UK Statistics Authority,Office for National Statistics,27/05/2020,Exp - Purchase Of Goods/Services - Contractors,IT Applications,Parity Resources Limited,182537,"1,845.60",Information Management Services,Large,Programme Expenditure
UK Statistics Authority,Office for National Statistics,27/05/2020,Exp - Short-Term Contract & Agency Staff - Full Cost,Digital Delivery,Parity Resources Limited,182537,552.24,Information Management Services,Large,Programme Expenditure
UK Statistics Authority,Office for National Statistics,27/05/2020,Exp - Purchase Of Goods/Services - Contractors,Digital Delivery,Parity Resources Limited,182537,"9,668.08",Information Management Services,Large,Programme Expenditure
UK Statistics Authority,Office for National Statistics,27/05/2020,Exp - Purchase Of Goods/Services - IT Contractual Services,Digital Delivery,Parity Resources Limited,182537,"7,497.36",Information Management Services,Large,Programme Expenditure
UK Statistics Authority,Office for National Statistics,27/05/2020,Exp - Purchase Of Goods/Services - Contractors,Data Science Campus,Parity Resources Limited,182537,"10,675.20",Information Management Services,Large,Programme Expenditure
UK Statistics Authority,Office for National Statistics,27/05/2020,Exp - Short-Term Contract & Agency Staff - Full Cost,Public Sector And Households,Parity Resources Limited,182537,608.86,Information Management Services,Large,Programme Expenditure
UK Statistics Authority,Office for National Statistics,27/05/2020,Exp - Short-Term Contract & Agency Staff - Full Cost,Labour Market,Parity Resources Limited,182537,586.08,Information Management Services,Large,Programme Expenditure
UK Statistics Authority,Office for National Statistics,27/05/2020,Exp - Short-Term Contract & Agency Staff - Full Cost,Labour Market,Parity Resources Limited,182537,594,Information Management Services,Large,Programme Expenditure
UK Statistics Authority,Office for National Statistics,18/05/2020,Exp - Purchase Of Goods/Services - Incentive Payments,Covid Infection Survey,P & Mm Ltd,30001977,"1,000,000.00",Survey Response Incentive Vouchers,Large,Programme Expenditure
UK Statistics Authority,Office for National Statistics,26/05/2020,Exp - Purchase Of Goods/Services - Incentive Payments,Covid Infection Survey,Sodexo Motivation Solutions U.K. ltd,30002019,"243,656.16",Survey Response Incentive Vouchers,Large,Programme Expenditure
UK Statistics Authority,Office for National Statistics,28/05/2020,Exp Other Taxation Payable,Census,HM Revenue & Customs,30002026,"38,720.78",Census PAYE Payment,Large,Programme Expenditure
UK Statistics Authority,Office for National Statistics,29/05/2020,Postage,Respondent Relations,DHL Parcel Ltd,30002028,"111,718.45",Courier Services,Large,Programme Expenditure
UK Statistics Authority,Office for National Statistics,29/05/2020,Surveys,Sustainability And Inequalities,Ricardo-AEA Ltd,30002029,"61,560.35",Research Services,SME,Programme Expenditure
UK Statistics Authority,Office for National Statistics,29/05/2020,"ICT Outsourcing, Maintenance And Support",Senior Management Team Design,Totalmobile Ltd,30002030,"168,116.40",Field Work Management,SME,Programme Expenditure
UK Statistics Authority,Office for National Statistics,29/05/2020,"ICT Outsourcing, Maintenance And Support",Consultancy Management,Totalmobile Ltd,30002030,"79,200.00",Field Work Management,SME,Programme Expenditure
UK Statistics Authority,Office for National Statistics,29/05/2020,Exp - Purchase Of Goods/Services - IT Contractual Services,Tech Delivery Data As A Platform,Kainos,30002032,"235,542.77",Information Management Services,Large,Programme Expenditure
UK Statistics Authority,Office for National Statistics,29/05/2020,Hosting,Tech Delivery Data As A Platform,Kainos,30002032,"7,455.95",Information Management Services,Large,Programme Expenditure
UK Statistics Authority,Office for National Statistics,29/05/2020,End User Software And Hardware,IT Operations,Stone Computers,30002033,"32,985.00",Computers and Peripherals ,Large,Programme Expenditure
UK Statistics Authority,Office for National Statistics,29/05/2020,End User Software And Hardware,IT Operations,Probrand Ltd,30002034,"87,926.40",Computers and Peripherals ,SME,Programme Expenditure
